lending/lending_fUSD_20250210
["ID","MTS","AMOUNT","RATE_DAILY","PERIOD"]
[352654566,1739217096219,-835.08,0.00012054,2]
[352654567,1739217096228,-500.0,0.00012054,2]
[352654568,1739217096237,-525.68540556,0.00012054,2]
[352654569,1739217096248,-927.03,0.00012054,2]
[352654570,1739217096257,-1414.15,0.00012054,2]
[352654571,1739217096267,-974.35,0.00012054,2]
[352654572,1739217096278,-1339.11,0.00012054,2]
[352654573,1739217096288,-1394.54,0.00012054,2]
[352654574,1739217096298,-1459.18,0.00012054,2]
[352654575,1739217096307,-500.0,0.00012054,2]
[352654576,1739217096317,-1307.0,0.00012054,2]
[352654577,1739217096327,-713.9,0.00012054,2]
[352654578,1739217096336,-669.6,0.00012054,2]
[352654579,1739217096346,-500.0,0.00012054,2]
[352654580,1739217096357,-908.17,0.00012054,2]
[352654581,1739217096366,-792.5,0.00012054,2]
[352654582,1739217096376,-709.69,0.00012054,2]
[352654583,1739217096386,-500.0,0.00012054,2]
[352654584,1739217096396,-861.34,0.00012054,2]
[352654585,1739217096405,-618.61,0.00012054,2]
[352654586,1739217096415,-1380.24,0.00012054,2]
[352654587,1739217096425,-968.54,0.00012054,2]
[352654588,1739217096436,-2373.67,0.00012054,2]
[352654589,1739217096446,-3706.07,0.00012054,2]
[352654590,1739217096456,-715.18,0.00012054,2]
[352654591,1739217096466,-812.26,0.00012054,2]
[352654592,1739217096476,-500.0,0.00012054,2]
[352654593,1739217096486,-571.93,0.00012054,2]
[352654594,1739217096495,-503.36,0.00012054,2]
[352654595,1739217096505,-2795.86,0.00012054,2]
[352654596,1739217096514,-1463.82,0.00012054,2]
[352654597,1739217096524,-500.0,0.00012054,2]
[352654598,1739217096534,-500.0,0.00012054,2]
[352654599,1739217096545,-1115.84,0.00012054,2]
[352654600,1739217096556,-500.0,0.00012054,2]
[352654601,1739217096567,-769.96,0.00012054,2]
[352654602,1739217096577,-748.1,0.00012054,2]
[352654603,1739217096587,-500.0,0.00012054,2]
[352654604,1739217096596,-1954.18,0.00012054,2]
[352654605,1739217096607,-3523.07,0.00012054,2]
[352654606,1739217096617,-832.11,0.00012054,2]
[352654607,1739217096626,-718.12,0.00012054,2]
[352654608,1739217096637,-834.26,0.00012054,2]
[352654609,1739217096646,-1677.1,0.00012054,2]
[352654610,1739217096656,-1508.82,0.00012054,2]
[352654611,1739217096665,-2173.12,0.00012054,2]
[352654612,1739217096675,-637.11,0.00012054,2]
[352654613,1739217096684,-500.0,0.00012054,2]
[352654614,1739217096693,-500.0,0.00012054,2]
[352654615,1739217096703,-1398.39,0.00012054,2]
[352654616,1739217096712,-1398.24,0.00012054,2]
[352654617,1739217096722,-1741.14,0.00012054,2]
[352654618,1739217096732,-500.0,0.00012054,2]
[352654619,1739217096742,-1494.55,0.00012054,2]
[352654620,1739217096751,-587.05,0.00012054,2]
[352654621,1739217096761,-523.62131905,0.00012054,2]
[352654622,1739217096771,-500.0,0.00012054,2]
[352654623,1739217096781,-624.81,0.00012054,2]
[352654624,1739217096791,-1199.22,0.00012054,2]
[352654625,1739217096800,-1979.93,0.00012054,2]
[352654626,1739217096810,-802.65,0.00012054,2]
[352654627,1739217096820,-1405.04,0.00012054,2]
[352654628,1739217096830,-2187.78,0.00012054,2]
[352654629,1739217096840,-1056.67,0.00012054,2]
[352654630,1739217096849,-2701.47,0.00012054,2]
[352654631,1739217096859,-595.63,0.00012054,2]
[352654632,1739217096869,-930.08,0.00012054,2]
[352654633,1739217096878,-1147.5,0.00012054,2]
[352654634,1739217096888,-964.23,0.00012054,2]
[352654635,1739217096897,-704.54,0.00012054,2]
[352654636,1739217096906,-699.04,0.00012054,2]
[352654637,1739217096917,-963.91,0.00012054,2]
[352654638,1739217096927,-562.5,0.00012054,2]
[352654639,1739217096936,-1797.41,0.00012054,2]
[352654640,1739217096947,-2947.91,0.00012054,2]
[352654641,1739217096956,-1804.58,0.00012054,2]
[352654642,1739217096966,-1036.2,0.00012054,2]
[352654643,1739217096975,-1449.23,0.00012054,2]
[352654644,1739217096986,-1222.64,0.00012054,2]
[352654645,1739217096996,-742.77,0.00012054,2]
[352654646,1739217097006,-2002.97,0.00012054,2]
[352654647,1739217097016,-522.5,0.00012054,3]
[352654648,1739217097027,-500.0,0.00012054,2]
[352654649,1739217097036,-500.0,0.00012054,2]
[352654650,1739217097048,-796.24,0.00012054,2]
[352654651,1739217097058,-645.83,0.00012054,2]
[352654652,1739217097068,-970.47,0.00012054,2]
[352654653,1739217097077,-500.0,0.00012054,2]
[352654654,1739217097087,-625.0,0.00012054,2]
[352654655,1739217097097,-500.0,0.00012054,2]
[352654656,1739217097106,-716.69,0.00012054,2]
[352654657,1739217097116,-1648.9,0.00012054,2]
[352654658,1739217097125,-1668.82,0.00012054,2]
[352654659,1739217097135,-500.0,0.00012054,2]
[352654660,1739217097145,-1844.01,0.00012054,2]
[352654661,1739217097154,-1966.76,0.00012054,2]
[352654662,1739217097165,-500.32,0.00012054,2]
[352654663,1739217097174,-1124.71,0.00012054,2]
[352654664,1739217097183,-706.93,0.00012054,2]
[352654665,1739217097193,-500.0,0.00012054,2]
[352654666,1739217097202,-2457.08,0.00012054,2]
[352654667,1739217097211,-500.0,0.00012054,2]
[352654668,1739217097221,-1009.57,0.00012054,2]
[352654669,1739217097231,-500.0,0.00012054,2]
[352654670,1739217097241,-2032.53,0.00012054,2]
[352654671,1739217097250,-1156.44,0.00012054,2]
[352654672,1739217097259,-934.8,0.00012054,2]
[352654673,1739217097270,-2081.61,0.00012054,2]
[352654674,1739217097280,-583.33,0.00012054,2]
[352654675,1739217097290,-683.87,0.00012054,2]
[352654676,1739217097301,-810.76,0.00012054,2]
[352654677,1739217097311,-1603.74,0.00012054,2]
[352654678,1739217097321,-1979.23,0.00012054,2]
[352654679,1739217097331,-3155.5,0.00012054,2]
[352654680,1739217097340,-520.83,0.00012054,2]
[352654681,1739217097350,-2265.86,0.00012054,2]
[352654682,1739217097359,-1747.24,0.00012054,2]
[352654683,1739217097369,-2237.83,0.00012054,2]
[352654684,1739217097378,-1675.96,0.00012054,2]
[352654685,1739217097388,-1819.33,0.00012054,2]
[352654686,1739217097398,-500.0,0.00012054,2]
[352654687,1739217097407,-541.66,0.00012054,2]
[352654688,1739217097417,-1574.7,0.00012054,2]
[352654689,1739217097427,-530.6,0.00012054,2]
[352654690,1739217097438,-837.21,0.00012054,2]
[352654691,1739217097448,-1491.31,0.00012054,2]
[352654692,1739217097458,-1019.21,0.00012054,2]
[352654693,1739217097467,-2726.72,0.00012054,2]
[352654694,1739217097476,-281.64199964,0.00012054,2]
[352654695,1739217097486,-1880.79,0.00012054,2]
[352654696,1739217097495,-517.16,0.00012054,2]
[352654697,1739217097505,-1527.87,0.00012054,2]
[352654698,1739217097514,-2139.45,0.00012054,2]
[352654699,1739217097524,-500.0,0.00012054,2]
[352654700,1739217097533,-4291.63,0.00012054,2]
[352654701,1739217097543,-500.0,0.00012054,2]
[352654702,1739217097555,-1061.69,0.00012054,2]
[352654703,1739217097566,-860.76,0.00012054,2]
[352654704,1739217097576,-252.41024484,0.00012054,2]
[352654705,1739217097585,-2344.73,0.00012054,2]
[352654706,1739217097595,-1443.4,0.00012054,2]
[352654707,1739217097604,-500.0,0.00012054,2]
[352654708,1739217097614,-500.0,0.00012054,2]
[352654709,1739217097624,-4387.49,0.00012054,2]
[352654710,1739217097635,-3176.66,0.00012054,2]
[352654711,1739217097644,-8593.09,0.00012054,2]
[352654712,1739217097653,-2245.56,0.00012054,2]
[352654713,1739217097663,-3099.9,0.00012054,2]
[352654714,1739217097672,-1243.47,0.00012054,2]
[352654715,1739217097682,-500.0,0.00012054,2]
[352654716,1739217097691,-1144.1,0.00012054,2]
[352654717,1739217097701,-500.0,0.00012054,2]
[352654718,1739217097710,-7758.75,0.00012054,2]
[352654719,1739217097725,-1954.77,0.00012054,2]
[352654720,1739217097735,-271.69850338,0.00012054,2]
[352654721,1739217097744,-500.0,0.00012054,2]
[352654722,1739217097753,-500.0,0.00012054,2]
[352654723,1739217097763,-2839.44,0.00012054,2]
[352654724,1739217097772,-505.81,0.00012054,2]
[352654725,1739217097782,-2675.13,0.00012054,2]
[352654726,1739217097791,-631.34,0.00012054,2]
[352654727,1739217097800,-2178.42,0.00012054,2]
[352654728,1739217097810,-1372.0,0.00012054,2]
[352654729,1739217097819,-819.49,0.00012054,2]
[352654730,1739217097829,-645.83,0.00012054,2]
[352654731,1739217097838,-1788.99,0.00012054,2]
[352654732,1739217097847,-3308.63,0.00012054,2]
[352654733,1739217098047,-543.83,0.00012054,2]
[352654734,1739217098057,-581.28041198,0.00012054,2]
[352654735,1739217098067,-1086.68,0.00012054,2]
[352654736,1739217098076,-1162.59,0.00012054,2]
[352654737,1739217098085,-531.40802772,0.00012054,2]
[352654738,1739217098094,-500.0,0.00012054,2]
[352654739,1739217098103,-500.0,0.00012054,2]
[352654740,1739217098112,-1804.05,0.00012054,2]
[352654741,1739217098122,-5188.0,0.00012054,2]
[352654742,1739217098131,-2392.85,0.00012054,2]
[352654743,1739217098140,-2313.42,0.00012054,2]
[352654744,1739217098149,-749.16,0.00012054,2]
[352654745,1739217098158,-500.0,0.00012054,2]
[352654746,1739217098168,-500.0,0.00012054,2]
[352654747,1739217098177,-1632.19,0.00012054,2]
[352654748,1739217098187,-766.68,0.00012054,2]
[352654749,1739217098197,-500.0,0.00012054,2]
[352654750,1739217098207,-2419.09,0.00012054,2]
[352654751,1739217098216,-599.54,0.00012054,2]
[352654752,1739217098225,-2781.55,0.00012054,2]
[352654753,1739217098234,-3815.56,0.00012054,2]
[352654754,1739217098243,-702.71,0.00012054,2]
[352654755,1739217098254,-899.39,0.00012054,2]
[352654756,1739217098264,-1221.97,0.00012054,2]
[352654757,1739217098274,-500.0,0.00012054,2]
[352654758,1739217098283,-609.96,0.00012054,2]
[352654759,1739217098293,-3066.98,0.00012054,2]
[352654760,1739217098303,-1855.22,0.00012054,2]
[352654761,1739217098312,-568.31,0.00012054,2]
[352654762,1739217098322,-500.0,0.00012054,2]
[352654763,1739217098331,-1154.02,0.00012054,2]
[352654764,1739217098340,-500.0,0.00012054,2]
[352654765,1739217098349,-621.93,0.00012054,2]
[352654766,1739217098359,-1663.55,0.00012054,2]
[352654767,1739217098369,-1470.96,0.00012054,2]
[352654768,1739217098379,-1448.93,0.00012054,2]
[352654769,1739217098389,-1691.99,0.00012054,2]
[352654770,1739217098398,-673.88,0.00012054,2]
[352654771,1739217098408,-3129.14,0.00012054,2]
[352654772,1739217098418,-2320.87,0.00012054,2]
[352654773,1739217098428,-995.88,0.00012054,2]
[352654774,1739217098438,-500.0,0.00012054,2]
[352654775,1739217098447,-2618.51,0.00012054,2]
[352654776,1739217098457,-2818.9,0.00012054,2]
[352654777,1739217098466,-993.55,0.00012054,2]
[352654778,1739217098475,-2748.46,0.00012054,2]
[352654779,1739217098485,-500.0,0.00012054,2]
[352654780,1739217098494,-652.35,0.00012054,2]
[352654781,1739217098503,-1579.61,0.00012054,2]
[352654782,1739217098512,-2898.79,0.00012054,2]
[352654783,1739217098521,-712.02,0.00012054,2]
[352654784,1739217098531,-3025.96,0.00012054,2]
[352654785,1739217098541,-750.4,0.00012054,2]
[352654786,1739217098553,-848.72,0.00012054,2]
[352654787,1739217098564,-608.49,0.00012054,2]
[352654788,1739217098573,-500.0,0.00012054,2]
[352654789,1739217098583,-1361.68,0.00012054,2]
[352654790,1739217098592,-1503.79,0.00012054,2]
[352654791,1739217098602,-500.0,0.00012054,2]
[352654792,1739217098612,-1199.24,0.00012054,2]
[352654793,1739217098622,-6001.48246202,0.00012088,2]
[352654794,1739217098632,-165.61,0.00012132,2]
[352654795,1739217098642,-641.621339,0.00012191,2]
[352654796,1739217098651,-563.348585,0.00012191,2]
[352654797,1739217098661,-500.0,0.00012191,2]
[352654798,1739217098670,-500.0,0.00012191,2]
[352654799,1739217098680,-500.0,0.00012191,2]
[352654800,1739217098690,-500.0,0.00012191,2]
[352654801,1739217098700,-500.0,0.00012191,2]
[352654802,1739217098709,-500.0,0.00012191,2]
[352654803,1739217098719,-545.01442365,0.00012191,2]
[352654804,1739217098728,-500.0,0.00012191,2]
[352654805,1739217098738,-500.0,0.00012191,2]
[352654806,1739217098748,-541.12,0.00012191,2]
[352654807,1739217098758,-597.05,0.00012191,2]
[352654808,1739217098767,-500.0,0.00012191,2]
[352654809,1739217098776,-500.0,0.00012191,2]
[352654810,1739217098786,-304.37469861,0.00012191,2]
[352654811,1739217098800,-500.0,0.00012191,2]
[352654812,1739217098810,-500.0,0.00012191,2]
[352654813,1739217098819,-502.57,0.00012191,2]
[352654814,1739217098828,-1200.0,0.00012191,2]
[352654815,1739217098838,-257.71267973,0.00012191,2]
[352654816,1739217098847,-531.44,0.00012191,2]
[352654817,1739217098857,-500.0,0.00012191,2]
[352654818,1739217098867,-810.48,0.00012191,2]
[352654819,1739217098876,-500.0,0.00012191,2]
[352654820,1739217098886,-500.0,0.00012191,2]
[352654821,1739217098895,-512.43,0.00012191,2]
[352654822,1739217098905,-500.0,0.00012191,2]
[352654823,1739217098914,-500.0,0.00012191,2]
[352654824,1739217098924,-609.09,0.00012191,2]
[352654825,1739217098933,-500.0,0.00012191,2]
[352654826,1739217098943,-500.0,0.00012191,2]
[352654827,1739217098952,-745.2,0.00012191,2]
[352654828,1739217098962,-500.0,0.00012191,2]
[352654829,1739217098971,-500.0,0.00012191,2]
[352654830,1739217098981,-820.08,0.00012191,2]
[352654831,1739217098991,-500.0,0.00012191,2]
[352654832,1739217099001,-500.0,0.00012191,2]
[352654833,1739217099011,-500.0,0.00012191,2]
[352654834,1739217099021,-1862.78,0.00012191,2]
[352654835,1739217099031,-197.46217005,0.00012191,2]
[352654836,1739217099041,-991.22,0.00012191,2]
[352654837,1739217099051,-500.0,0.00012191,2]
[352654838,1739217099061,-951.4,0.00012191,2]
[352654839,1739217099071,-874.12,0.00012191,2]
[352654840,1739217099080,-591.78,0.00012191,2]
[352654841,1739217099090,-1448.37,0.00012191,2]
[352654842,1739217099099,-572.87,0.00012191,2]
[352654843,1739217099109,-1014.74,0.00012191,2]
[352654844,1739217099119,-500.0,0.00012191,2]
[352654845,1739217099129,-1242.07,0.00012191,2]
[352654846,1739217099139,-500.0,0.00012191,2]
[352654847,1739217099148,-589.74,0.00012191,2]
[352654848,1739217099158,-500.0,0.00012191,2]
[352654849,1739217099167,-500.0,0.00012191,2]
[352654850,1739217099177,-500.0,0.00012191,2]
[352654851,1739217099187,-549.56,0.00012191,2]
[352654852,1739217099196,-682.19,0.00012191,2]
[352654853,1739217099206,-500.0,0.00012191,2]
[352654854,1739217099216,-628.64,0.00012191,2]
[352654855,1739217099225,-500.0,0.00012191,2]
[352654856,1739217099235,-500.0,0.00012191,2]
[352654857,1739217099244,-910.68,0.00012191,2]
[352654858,1739217099255,-718.31,0.00012191,2]
[352654859,1739217099265,-1094.62,0.00012191,2]
[352654860,1739217099275,-758.66,0.00012191,2]
[352654861,1739217099284,-846.94,0.00012191,2]
[352654862,1739217099295,-923.59,0.00012191,2]
[352654863,1739217099304,-500.0,0.00012191,2]
[352654864,1739217099314,-500.0,0.00012191,2]
[352654865,1739217099324,-942.9,0.00012191,2]
[352654866,1739217099333,-813.51,0.00012191,2]
[352654867,1739217099342,-500.0,0.00012191,2]
[352654868,1739217099352,-500.0,0.00012191,2]
[352654869,1739217099362,-500.0,0.00012191,2]
[352654870,1739217099371,-1170.73,0.00012191,2]
[352654871,1739217099381,-1443.11,0.00012191,2]
[352654872,1739217099390,-874.82,0.00012191,2]
[352654873,1739217099401,-500.0,0.00012191,2]
[352654874,1739217099411,-500.0,0.00012191,2]
[352654875,1739217099421,-283.59388568,0.00012191,2]
[352654876,1739217099430,-828.38,0.00012191,2]
[352654877,1739217099440,-1336.04,0.00012191,2]
[352654878,1739217099450,-1416.68,0.00012191,2]
[352654879,1739217099459,-1370.33,0.00012191,2]
[352654880,1739217099469,-626.36,0.00012191,2]
[352654881,1739217099478,-997.5,0.00012191,2]
[352654882,1739217099488,-1315.41,0.00012191,2]
[352654883,1739217099497,-1211.22,0.00012191,2]
[352654884,1739217099506,-500.0,0.00012191,2]
[352654885,1739217099516,-500.0,0.00012191,2]
[352654886,1739217099525,-500.0,0.00012191,2]
[352654887,1739217099535,-505.87,0.00012191,2]
[352654888,1739217099546,-500.0,0.00012191,2]
[352654889,1739217099558,-500.0,0.00012191,2]
[352654890,1739217099568,-726.19,0.00012191,2]
[352654891,1739217099577,-500.0,0.00012191,2]
[352654892,1739217099587,-806.7,0.00012191,2]
[352654893,1739217099598,-873.16,0.00012191,2]
[352654894,1739217099607,-837.9,0.00012191,2]
[352654895,1739217099617,-831.3,0.00012191,2]
[352654896,1739217099626,-1700.07,0.00012191,2]
[352654897,1739217099638,-526.93,0.00012191,2]
[352654898,1739217099648,-908.11,0.00012191,2]
[352654899,1739217099658,-473.89752,0.00012191,2]
[352654900,1739217099669,-684.98,0.00012191,2]
[352654901,1739217099680,-710.89,0.00012191,2]
[352654902,1739217099690,-500.0,0.00012191,2]
[352654903,1739217099700,-719.92,0.00012191,2]
[352654904,1739217099710,-869.99,0.00012191,2]
[352654905,1739217099719,-500.0,0.00012191,2]
[352654906,1739217099729,-551.41,0.00012191,2]
[352654907,1739217099739,-1051.27,0.00012191,2]
[352654908,1739217099748,-500.0,0.00012191,2]
[352654909,1739217099758,-500.0,0.00012191,2]
[352654910,1739217099768,-540.44,0.00012191,2]
[352654911,1739217099779,-1096.75,0.00012191,2]
[352654912,1739217099788,-884.26,0.00012191,2]
[352654913,1739217099798,-708.33,0.00012191,2]
[352654914,1739217099808,-765.79,0.00012191,2]
[352654915,1739217099818,-500.0,0.00012191,2]
[352654916,1739217099828,-500.0,0.00012191,2]
[352654917,1739217099838,-888.99,0.00012191,2]
[352654918,1739217099848,-500.0,0.00012191,2]
[352654919,1739217099857,-500.0,0.00012191,2]
[352654920,1739217099867,-823.69,0.00012191,2]
[352654921,1739217099878,-500.0,0.00012191,2]
[352654922,1739217099888,-1307.26,0.00012191,2]
[352654923,1739217099898,-644.78,0.00012191,2]
[352654924,1739217099908,-648.7,0.00012191,2]
[352654925,1739217099918,-878.48,0.00012191,2]
[352654926,1739217099928,-1365.19,0.00012191,2]
[352654927,1739217099938,-500.0,0.00012191,2]
[352654928,1739217099948,-1292.76,0.00012191,2]
[352654929,1739217099958,-1500.35,0.00012191,2]
[352654930,1739217099968,-500.0,0.00012191,2]
[352654931,1739217099978,-828.23,0.00012191,2]
[352654932,1739217099989,-796.75,0.00012191,2]
[352654933,1739217099999,-500.0,0.00012191,2]
[352654934,1739217100011,-500.0,0.00012191,2]
[352654935,1739217100020,-1956.77,0.00012191,2]
[352654936,1739217100030,-500.0,0.00012191,2]
[352654937,1739217100040,-500.0,0.00012191,2]
[352654938,1739217100051,-500.0,0.00012191,2]
[352654939,1739217100061,-500.0,0.00012191,2]
[352654940,1739217100072,-500.0,0.00012191,2]
[352654941,1739217100082,-500.0,0.00012191,2]
[352654942,1739217100093,-797.43,0.00012191,2]
[352654943,1739217100103,-503.81,0.00012191,2]
[352654944,1739217100112,-688.07,0.00012191,2]
[352654945,1739217100122,-500.0,0.00012191,2]
[352654946,1739217100132,-1205.84,0.00012191,2]
[352654947,1739217100141,-806.41,0.00012191,2]
[352654948,1739217100151,-500.0,0.00012191,2]
[352654949,1739217100160,-500.0,0.00012191,2]
[352654950,1739217100170,-500.0,0.00012191,2]
[352654951,1739217100180,-735.56,0.00012191,2]
[352654952,1739217100190,-798.49,0.00012191,2]
[352654953,1739217100199,-847.34,0.00012191,2]
[352654954,1739217100210,-500.0,0.00012191,2]
[352654955,1739217100219,-548.6,0.00012191,2]
[352654956,1739217100228,-671.06,0.00012191,2]
[352654957,1739217100238,-500.0,0.00012191,2]
[352654958,1739217100247,-857.26,0.00012191,2]
[352654959,1739217100257,-805.28,0.00012191,2]
[352654960,1739217100267,-737.36,0.00012191,2]
[352654961,1739217100277,-500.0,0.00012191,2]
[352654962,1739217100287,-686.24,0.00012191,2]
[352654963,1739217100296,-899.13,0.00012191,2]
[352654964,1739217100306,-752.18,0.00012191,2]
[352654965,1739217100317,-500.0,0.00012191,2]
[352654966,1739217100327,-500.0,0.00012191,2]
[352654967,1739217100337,-500.0,0.00012191,2]
[352654968,1739217100346,-939.92,0.00012191,2]
[352654969,1739217100356,-817.55,0.00012191,2]
[352654970,1739217100366,-993.53,0.00012191,2]
[352654971,1739217100375,-1409.06,0.00012191,2]
[352654972,1739217100385,-646.34,0.00012191,2]
[352654973,1739217100394,-525.71,0.00012191,2]
[352654974,1739217100404,-903.04,0.00012191,2]
[352654975,1739217100414,-813.76,0.00012191,2]
[352654976,1739217100423,-835.08,0.00012191,2]
[352654977,1739217100432,-500.0,0.00012191,2]
[352654978,1739217100443,-927.03,0.00012191,2]
[352654979,1739217100453,-1414.15,0.00012191,2]
[352654980,1739217100463,-974.35,0.00012191,2]
[352654981,1739217100473,-1339.11,0.00012191,2]
[352654982,1739217100483,-1394.54,0.00012191,2]
[352654983,1739217100492,-1459.18,0.00012191,2]
[352654984,1739217100502,-500.0,0.00012191,2]
[352654985,1739217100512,-1307.0,0.00012191,2]
[352654986,1739217100522,-713.9,0.00012191,2]
[352654987,1739217100531,-669.6,0.00012191,2]
[352654988,1739217100541,-500.0,0.00012191,2]
[352654989,1739217100551,-908.17,0.00012191,2]
[352654990,1739217100562,-792.5,0.00012191,2]
[352654991,1739217100573,-709.69,0.00012191,2]
[352654992,1739217100583,-500.0,0.00012191,2]
[352654993,1739217100593,-861.34,0.00012191,2]
[352654994,1739217100603,-618.61,0.00012191,2]
[352654995,1739217100613,-1380.24,0.00012191,2]
[352654996,1739217100623,-968.54,0.00012191,2]
[352654997,1739217100633,-2373.67,0.00012191,2]
[352654998,1739217100643,-3706.07,0.00012191,2]
[352654999,1739217100653,-715.18,0.00012191,2]
[352655000,1739217100662,-812.26,0.00012191,2]
[352655001,1739217100672,-500.0,0.00012191,2]
[352655002,1739217100682,-571.93,0.00012191,2]
[352655003,1739217100691,-503.36,0.00012191,2]
[352655004,1739217100701,-2795.86,0.00012191,2]
[352655005,1739217100710,-1463.82,0.00012191,2]
[352655006,1739217100720,-500.0,0.00012191,2]
[352655007,1739217100731,-500.0,0.00012191,2]
[352655008,1739217100740,-1115.84,0.00012191,2]
[352655009,1739217100750,-500.0,0.00012191,2]
[352655010,1739217100759,-769.96,0.00012191,2]
[352655011,1739217100769,-748.1,0.00012191,2]
[352655012,1739217100778,-500.0,0.00012191,2]
[352655013,1739217100788,-1954.18,0.00012191,2]
[352655014,1739217100799,-3523.07,0.00012191,2]
[352655015,1739217100809,-832.11,0.00012191,2]
[352655016,1739217100818,-718.12,0.00012191,2]
[352655017,1739217100828,-834.26,0.00012191,2]
[352655018,1739217100838,-1677.1,0.00012191,2]
[352655019,1739217100847,-1508.82,0.00012191,2]
[352655020,1739217100857,-2173.12,0.00012191,2]
[352655021,1739217100867,-500.0,0.00012191,2]
[352655022,1739217100877,-637.11,0.00012191,2]
[352655023,1739217100887,-500.0,0.00012191,2]
[352655024,1739217100896,-1398.39,0.00012191,2]
[352655025,1739217100906,-1398.24,0.00012191,2]
[352655026,1739217100916,-1741.14,0.00012191,2]
[352655027,1739217100926,-500.0,0.00012191,2]
[352655028,1739217100935,-1494.55,0.00012191,2]
[352655029,1739217100945,-587.05,0.00012191,2]
[352655030,1739217100954,-500.0,0.00012191,2]
[352655031,1739217100963,-624.81,0.00012191,2]
[352655032,1739217100972,-1199.22,0.00012191,2]
[352655033,1739217100982,-802.65,0.00012191,2]
[352655034,1739217100991,-1979.93,0.00012191,2]
[352655035,1739217101001,-1405.04,0.00012191,2]
[352655036,1739217101010,-2187.78,0.00012191,2]
[352655037,1739217101020,-1056.67,0.00012191,2]
[352655038,1739217101030,-2701.47,0.00012191,2]
[352655039,1739217101040,-595.63,0.00012191,2]
[352655040,1739217101050,-930.08,0.00012191,2]
[352655041,1739217101059,-1147.5,0.00012191,2]
[352655042,1739217101069,-964.23,0.00012191,2]
[352655043,1739217101079,-704.54,0.00012191,2]
[352655044,1739217101088,-699.04,0.00012191,2]
[352655045,1739217101098,-963.91,0.00012191,2]
[352655046,1739217101107,-562.5,0.00012191,2]
[352655047,1739217101116,-1797.41,0.00012191,2]
[352655048,1739217101125,-2947.91,0.00012191,2]
[352655049,1739217101135,-1804.58,0.00012191,2]
[352655050,1739217101143,-1036.2,0.00012191,2]
[352655051,1739217101153,-1449.23,0.00012191,2]
[352655052,1739217101162,-1222.64,0.00012191,2]
[352655053,1739217101172,-742.77,0.00012191,2]
[352655054,1739217101182,-2002.97,0.00012191,2]
[352655055,1739217101191,-500.0,0.00012191,2]
[352655056,1739217101201,-500.0,0.00012191,2]
[352655057,1739217101210,-796.24,0.00012191,2]
[352655058,1739217101220,-645.83,0.00012191,2]
[352655059,1739217101229,-970.47,0.00012191,2]
[352655060,1739217101239,-500.0,0.00012191,2]
[352655061,1739217101249,-625.0,0.00012191,2]
[352655062,1739217101258,-500.0,0.00012191,2]
[352655063,1739217101268,-716.69,0.00012191,2]
[352655064,1739217101277,-1668.82,0.00012191,2]
[352655065,1739217101287,-525.9496787,0.00012191,2]